fUSD/lending_fUSD_20250806
["ID","MTS","AMOUNT","RATE_DAILY","PERIOD"]
[377620101,1754460659972,-1339.01,0.00035616,14]
[377620102,1754460659982,-571.88,0.00035616,14]
[377620103,1754460659992,-1389.35,0.00035616,14]
[377620104,1754460660002,-1479.27,0.00035616,14]
[377620105,1754460660013,-400.0,0.00035616,14]
[377620106,1754460660025,-400.0,0.00035616,14]
[377620107,1754460660036,-68472.51,0.00035616,14]
[377620108,1754460660046,-400.0,0.00035616,14]
[377620109,1754460660056,-1486.99,0.00035616,14]
[377620110,1754460660067,-400.0,0.00035616,14]
[377620111,1754460660078,-1387.34,0.00035616,14]
[377620112,1754460660088,-400.0,0.00035616,14]
[377620113,1754460660099,-400.0,0.00035616,14]
[377620114,1754460660110,-1564.93,0.00035616,14]
[377620115,1754460660120,-151.0,0.00035616,7]
[377620116,1754460660131,-729.17,0.00035616,14]
[377620117,1754460660141,-151.0,0.00035616,7]
[377620118,1754460660151,-3073.45,0.00035616,14]
[377620119,1754460660160,-151.0,0.00035616,7]
[377620120,1754460660170,-1315.35,0.00035616,14]
[377620121,1754460660179,-1191.82,0.00035616,14]
[377620122,1754460660189,-460.57,0.00035616,14]
[377620123,1754460660199,-400.0,0.00035616,14]
[377620124,1754460660209,-400.0,0.00035616,14]
[377620125,1754460660220,-400.0,0.00035616,14]
[377620126,1754460660230,-2507.55,0.00035616,14]
[377620127,1754460660240,-400.0,0.00035616,14]
[377620128,1754460660250,-400.0,0.00035616,14]
[377620129,1754460660260,-992.81,0.00035616,14]
[377620130,1754460660270,-2013.08,0.00035616,14]
[377620131,1754460660280,-400.0,0.00035616,14]
[377620132,1754460660290,-400.0,0.00035616,14]
[377620133,1754460660300,-433.43440107,0.00035616,14]
[377620134,1754460660309,-2317.45,0.00035616,14]
[377620135,1754460660320,-2070.33,0.00035616,14]
[377620136,1754460660330,-400.0,0.00035616,14]
[377620137,1754460660340,-400.0,0.00035616,14]
[377620138,1754460660350,-1825.84,0.00035616,14]
[377620139,1754460660360,-400.0,0.00035616,14]
[377620140,1754460660370,-794.53,0.00035616,14]
[377620141,1754460660380,-400.0,0.00035616,14]
[377620142,1754460660390,-1691.78,0.00035616,14]
[377620143,1754460660400,-400.0,0.00035616,14]
[377620144,1754460660411,-1599.14,0.00035616,14]
[377620145,1754460660421,-400.0,0.00035616,14]
[377620146,1754460660432,-967.88,0.00035616,14]
[377620147,1754460660442,-400.0,0.00035616,14]
[377620148,1754460660452,-400.0,0.00035616,14]
[377620149,1754460660462,-677.92,0.00035616,14]
[377620150,1754460660471,-2964.29,0.00035616,14]
[377620151,1754460660481,-1094.29,0.00035616,14]
[377620152,1754460660491,-647.29,0.00035616,14]
[377620153,1754460660503,-400.0,0.00035616,14]
[377620154,1754460660513,-1991.41,0.00035616,14]
[377620155,1754460660522,-400.0,0.00035616,14]
[377620156,1754460660533,-400.0,0.00035616,14]
[377620157,1754460660543,-400.0,0.00035616,14]
[377620158,1754460660553,-400.0,0.00035616,14]
[377620159,1754460660563,-1728.56,0.00035616,14]
[377620160,1754460660573,-1286.31,0.00035616,14]
[377620161,1754460660583,-3225.72,0.00035616,14]
[377620162,1754460660593,-1598.45,0.00035616,14]
[377620163,1754460660602,-750.82,0.00035616,14]
[377620164,1754460660612,-2219.18,0.00035616,14]
[377620165,1754460660621,-400.0,0.00035616,14]
[377620166,1754460660631,-476.23,0.00035616,14]
[377620167,1754460660641,-2382.28,0.00035616,14]
[377620168,1754460660651,-1049.71,0.00035616,14]
[377620169,1754460660661,-500.0,0.00035616,14]
[377620170,1754460660672,-1935.49,0.00035616,14]
[377620171,1754460660683,-500.0,0.00035616,14]
[377620172,1754460660693,-500.0,0.00035616,14]
[377620173,1754460660703,-500.0,0.00035616,14]
[377620174,1754460660714,-400.0,0.00035616,14]
[377620175,1754460660724,-2228.47,0.00035616,14]
[377620176,1754460660734,-2529.38,0.00035616,14]
[377620177,1754460660744,-483.57,0.00035616,14]
[377620178,1754460660755,-558.61,0.00035616,14]
[377620179,1754460660764,-2412.01,0.00035616,14]
[377620180,1754460660774,-705.78,0.00035616,14]
[377620181,1754460660784,-400.0,0.00035616,14]
[377620182,1754460660793,-400.0,0.00035616,14]
[377620183,1754460660803,-1811.18,0.00035616,14]
[377620184,1754460660813,-151.0,0.00035616,7]
[377620185,1754460660824,-910.42,0.00035616,14]
[377620186,1754460660834,-422.63,0.00035616,14]
[377620187,1754460660844,-1654.28,0.00035616,14]
[377620188,1754460660855,-1858.68,0.00035616,14]
[377620189,1754460660865,-400.0,0.00035616,14]
[377620190,1754460660875,-400.0,0.00035616,14]
[377620191,1754460660885,-151.0,0.00035616,7]
[377620192,1754460661159,-1173.21,0.00035616,14]
[377620193,1754460661168,-151.0,0.00035616,7]
[377620194,1754460661180,-400.0,0.00035616,14]
[377620195,1754460661198,-1791.54,0.00035616,14]
[377620196,1754460661208,-400.0,0.00035616,14]
[377620197,1754460661218,-1949.16,0.00035616,14]
[377620198,1754460661228,-972.41,0.00035616,14]
[377620199,1754460661237,-400.0,0.00035616,14]
[377620200,1754460661247,-400.0,0.00035616,14]
[377620201,1754460661257,-881.96,0.00035616,14]
[377620202,1754460661266,-1512.4,0.00035616,14]
[377620203,1754460661276,-1103.15,0.00035616,14]
[377620204,1754460661286,-3195.11,0.00035616,14]
[377620205,1754460661296,-400.0,0.00035616,14]
[377620206,1754460661306,-1824.55,0.00035616,14]
[377620207,1754460661316,-1181.42,0.00035616,14]
[377620208,1754460661326,-2732.26,0.00035616,14]
[377620209,1754460661335,-753.74,0.00035616,14]
[377620210,1754460661345,-1779.43,0.00035616,14]
[377620211,1754460661355,-1426.76,0.00035616,14]
[377620212,1754460661364,-400.0,0.00035616,14]
[377620213,1754460661373,-400.0,0.00035616,14]
[377620214,1754460661383,-3103.72,0.00035616,14]
[377620215,1754460661393,-1792.59,0.00035616,14]
[377620216,1754460661403,-3638.98,0.00035616,14]
[377620217,1754460661413,-400.0,0.00035616,14]
[377620218,1754460661422,-2109.99,0.00035616,14]
[377620219,1754460661432,-2080.82,0.00035616,14]
[377620220,1754460661442,-2107.24,0.00035616,14]
[377620221,1754460661451,-3125.08,0.00035616,14]
[377620222,1754460661460,-2037.99,0.00035616,14]
[377620223,1754460661470,-400.0,0.00035616,14]
[377620224,1754460661480,-3646.33,0.00035616,14]
[377620225,1754460661489,-2519.02,0.00035616,14]
[377620226,1754460661499,-2072.05,0.00035616,14]
[377620227,1754460661510,-400.0,0.00035616,14]
[377620228,1754460661522,-400.0,0.00035616,14]
[377620229,1754460661532,-400.0,0.00035616,14]
[377620230,1754460661544,-1924.36,0.00035616,14]
[377620231,1754460661562,-1486.43,0.00035616,14]
[377620232,1754460661572,-400.0,0.00035616,14]
[377620233,1754460661581,-1730.41,0.00035616,14]
[377620234,1754460661591,-577.53,0.00035616,14]
[377620235,1754460661600,-400.0,0.00035616,14]
[377620236,1754460661610,-1989.84,0.00035616,14]
[377620237,1754460661619,-721.65,0.00035616,14]
[377620238,1754460661631,-869.04,0.00035616,14]
[377620239,1754460661640,-400.0,0.00035616,14]
[377620240,1754460661650,-400.0,0.00035616,14]
[377620241,1754460661660,-1438.95,0.00035616,14]
[377620242,1754460661670,-1469.58,0.00035616,14]
[377620243,1754460661679,-1825.7,0.00035616,14]
[377620244,1754460661690,-1576.83,0.00035616,14]
[377620245,1754460661700,-400.0,0.00035616,14]
[377620246,1754460661710,-400.0,0.00035616,14]
[377620247,1754460661719,-1711.09,0.00035616,14]
[377620248,1754460661729,-874.04,0.00035616,14]
[377620249,1754460661739,-500.0,0.00035616,14]
[377620250,1754460661753,-500.0,0.00035616,14]
[377620251,1754460661764,-500.0,0.00035616,14]
[377620252,1754460661774,-1326.38,0.00035616,14]
[377620253,1754460661785,-1570.86,0.00035616,14]
[377620254,1754460661796,-804.85,0.00035616,14]
[377620255,1754460661807,-400.0,0.00035616,14]
[377620256,1754460661817,-400.0,0.00035616,14]
[377620257,1754460661828,-2158.82,0.00035616,14]
[377620258,1754460661839,-1195.67,0.00035616,14]
[377620259,1754460661851,-400.0,0.00035616,14]
[377620260,1754460661874,-1228.45,0.00035616,14]
[377620261,1754460661896,-1718.16,0.00035616,14]
[377620262,1754460661916,-439.45,0.00035616,14]
[377620263,1754460661927,-2874.61,0.00035616,14]
[377620264,1754460661937,-499.75,0.00035616,14]
[377620265,1754460661948,-1387.19,0.00035616,14]
[377620266,1754460661960,-400.0,0.00035616,14]
[377620267,1754460661970,-3573.09,0.00035616,14]
[377620268,1754460661981,-401.8833312,0.00035616,14]
[377620269,1754460661993,-533.09,0.00035616,14]
[377620270,1754460662003,-400.0,0.00035616,14]
[377620271,1754460662016,-1680.87,0.00035616,14]
[377620272,1754460662027,-400.0,0.00035616,14]
[377620273,1754460662039,-917.29,0.00035616,14]
[377620274,1754460662050,-413.27,0.00035616,14]
[377620275,1754460662060,-400.6899915,0.00035616,14]
[377620276,1754460662069,-400.0,0.00035616,14]
[377620277,1754460662080,-1865.26,0.00035616,14]
[377620278,1754460662092,-2762.79,0.00035616,14]
[377620279,1754460662102,-1921.97,0.00035616,14]
[377620280,1754460662113,-400.0,0.00035616,14]
[377620281,1754460662123,-2740.16,0.00035616,14]
[377620282,1754460662134,-459.67,0.00035616,14]
[377620283,1754460662144,-151.0,0.00035616,7]
[377620284,1754460662154,-2012.59,0.00035616,14]
[377620285,1754460662164,-1643.02,0.00035616,14]
[377620286,1754460662174,-867.09,0.00035616,14]
[377620287,1754460662184,-500.0,0.00035616,14]
[377620288,1754460662194,-400.0,0.00035616,14]
[377620289,1754460662204,-500.0,0.00035616,14]
[377620290,1754460662214,-500.0,0.00035616,14]
[377620291,1754460662224,-2351.49,0.00035616,14]
[377620292,1754460662234,-400.0,0.00035616,14]
[377620293,1754460662244,-3225.18,0.00035616,14]
[377620294,1754460662254,-2097.43,0.00035616,14]
[377620295,1754460662268,-500.0,0.00035616,2]
[377620296,1754460662278,-553.63,0.00035616,14]
[377620297,1754460662289,-500.0,0.00035616,2]
[377620298,1754460662300,-500.0,0.00035616,14]
[377620299,1754460662310,-588.3,0.00035616,14]
[377620300,1754460662320,-500.0,0.00035616,2]
[377620301,1754460662331,-500.0,0.00035616,14]
[377620302,1754460662341,-1825.21,0.00035616,14]
[377620303,1754460662351,-500.0,0.00035616,2]
[377620304,1754460662362,-500.0,0.00035616,14]
[377620305,1754460662371,-500.0,0.00035616,2]
[377620306,1754460662381,-400.0,0.00035616,14]
[377620307,1754460662391,-500.0,0.00035616,14]
[377620308,1754460662401,-500.0,0.00035616,2]
[377620309,1754460662412,-500.0,0.00035616,2]
[377620310,1754460662422,-151.0,0.00035616,7]
[377620311,1754460662432,-1647.03,0.00035616,14]
[377620312,1754460662442,-253.61,0.00035616,14]
[377620313,1754460662453,-500.0,0.00035616,2]
[377620314,1754460662464,-400.0,0.00035616,14]
[377620315,1754460662475,-1253.12,0.00035616,14]
[377620316,1754460662485,-500.0,0.00035616,2]
[377620317,1754460662495,-500.0,0.00035616,2]
[377620318,1754460662506,-500.0,0.00035616,2]
[377620319,1754460662524,-500.0,0.00035616,2]
[377620320,1754460662533,-500.0,0.00035616,2]
[377620321,1754460662544,-500.0,0.00035616,2]
[377620322,1754460662555,-500.0,0.00035616,14]
[377620323,1754460662565,-400.0,0.00035616,14]
[377620324,1754460662576,-500.0,0.00035616,2]
[377620325,1754460662586,-500.0,0.00035616,14]
[377620326,1754460662597,-500.0,0.00035616,14]
[377620327,1754460662607,-500.0,0.00035616,14]
[377620328,1754460662618,-1139.58,0.00035616,14]
[377620329,1754460662629,-500.0,0.00035616,14]
[377620330,1754460662639,-400.0,0.00035616,14]
[377620331,1754460662649,-500.0,0.00035616,14]
[377620332,1754460662659,-400.0,0.00035616,14]
[377620333,1754460662669,-500.0,0.00035616,14]
[377620334,1754460662678,-2603.63,0.00035616,14]
[377620335,1754460662688,-500.0,0.00035616,14]
[377620336,1754460662698,-400.0,0.00035616,14]
[377620337,1754460662708,-400.0,0.00035616,14]
[377620338,1754460662717,-400.0,0.00035616,14]
[377620339,1754460662728,-814.66,0.00035616,14]
[377620340,1754460662737,-934.73,0.00035616,14]
[377620341,1754460662748,-2136.03,0.00035616,14]
[377620342,1754460662759,-2556.81,0.00035616,14]
[377620343,1754460662768,-1660.38,0.00035616,14]
[377620344,1754460662779,-400.0,0.00035616,14]
[377620345,1754460662789,-400.0,0.00035616,14]
[377620346,1754460662800,-944.85,0.00035616,14]
[377620347,1754460662809,-400.0,0.00035616,14]
[377620348,1754460662819,-3882.11,0.00035616,14]
[377620349,1754460662829,-2827.12,0.00035616,14]
[377620350,1754460662839,-164.597001,0.00035616,7]
[377620351,1754460662848,-2472.26,0.00035616,14]
[377620352,1754460662858,-457.76,0.00035616,14]
[377620353,1754460662868,-776.37,0.00035616,14]
[377620354,1754460662879,-1747.5,0.00035616,14]
[377620355,1754460662889,-400.0,0.00035616,14]
[377620356,1754460662899,-2660.17,0.00035616,14]
[377620357,1754460662909,-962.79,0.00035616,14]
[377620358,1754460662919,-400.0,0.00035616,14]
[377620359,1754460662929,-1317.64,0.00035616,14]
[377620360,1754460662939,-151.0,0.00035616,7]
[377620361,1754460662949,-151.0,0.00035616,7]
[377620362,1754460662959,-151.0,0.00035616,7]
[377620363,1754460662969,-400.0,0.00035616,14]
[377620364,1754460662978,-400.0,0.00035616,14]
[377620365,1754460662989,-768.87,0.00035616,14]
[377620366,1754460662999,-1696.45,0.00035616,14]
[377620367,1754460663009,-675.72,0.00035616,14]
[377620368,1754460663022,-2704.83,0.00035616,14]
[377620369,1754460663032,-400.0,0.00035616,14]
[377620370,1754460663042,-400.0,0.00035616,14]
[377620371,1754460663051,-2723.44,0.00035616,14]
[377620372,1754460663063,-2201.98,0.00035616,14]
[377620373,1754460663072,-1054.33,0.00035616,14]
[377620374,1754460663083,-151.0,0.00035616,7]
[377620375,1754460663094,-1565.53,0.00035616,14]
[377620376,1754460663105,-1889.82,0.00035616,14]
[377620377,1754460663115,-1424.96,0.00035616,14]
[377620378,1754460663124,-678.11,0.00035616,14]
[377620379,1754460663135,-400.0,0.00035616,14]
[377620380,1754460663145,-500.0,0.00035616,14]
[377620381,1754460663155,-500.0,0.00035616,14]
[377620382,1754460663165,-3239.09,0.00035616,14]
[377620383,1754460663175,-500.0,0.00035616,14]
[377620384,1754460663186,-500.0,0.00035616,14]
[377620385,1754460663195,-500.0,0.00035616,14]
[377620386,1754460663206,-500.0,0.00035616,14]
[377620387,1754460663215,-500.0,0.00035616,14]
[377620388,1754460663225,-780.87,0.00035616,14]
[377620389,1754460663234,-500.0,0.00035616,14]
[377620390,1754460663244,-400.0,0.00035616,14]
[377620391,1754460663253,-2110.04,0.00035616,14]
[377620392,1754460663264,-400.0,0.00035616,14]
[377620393,1754460663274,-276.73779712,0.00035616,14]
[377620394,1754460663284,-400.0,0.00035616,14]
[377620395,1754460663294,-400.0,0.00035616,14]
[377620396,1754460663304,-1409.85,0.00035616,14]
[377620397,1754460663314,-400.0,0.00035616,14]
[377620398,1754460663324,-1871.08,0.00035616,14]
[377620399,1754460663335,-2992.32,0.00035616,14]
[377620400,1754460663344,-4619.13,0.00035616,14]
[377620401,1754460663354,-1091.75,0.00035616,14]
[377620402,1754460663364,-1404.5,0.00035616,14]
[377620403,1754460663374,-400.0,0.00035616,14]
[377620404,1754460663384,-208.95020558,0.00035616,14]
[377620405,1754460663394,-2529.87,0.00035616,14]
[377620406,1754460663404,-400.0,0.00035616,14]
[377620407,1754460663414,-400.0,0.00035616,14]
[377620408,1754460663424,-506.54,0.00035616,14]
[377620409,1754460663434,-1832.66,0.00035616,14]
[377620410,1754460663443,-1404.19,0.00035616,14]
[377620411,1754460663454,-1206.52,0.00035616,14]
[377620412,1754460663463,-1050.1,0.00035616,14]
[377620413,1754460663473,-2188.65,0.00035616,14]
[377620414,1754460663483,-505.12,0.00035616,14]
[377620415,1754460663493,-400.0,0.00035616,14]
[377620416,1754460663503,-941.93,0.00035616,14]
[377620417,1754460663512,-2044.95,0.00035616,14]
[377620418,1754460663522,-400.0,0.00035616,14]
[377620419,1754460663532,-868.45,0.00035616,14]
[377620420,1754460663542,-2325.26,0.00035616,14]
[377620421,1754460663552,-1764.22,0.00035616,14]
[377620422,1754460663562,-766.48,0.00035616,14]
[377620423,1754460663571,-1125.53,0.00035616,14]
[377620424,1754460663581,-632.94,0.00035616,14]
[377620425,1754460663590,-657.9,0.00035616,14]
[377620426,1754460663601,-1115.85,0.00035616,14]
[377620427,1754460663611,-400.0,0.00035616,14]
[377620428,1754460663621,-926.55,0.00035616,14]
[377620429,1754460663632,-1560.79,0.00035616,14]
[377620430,1754460663642,-400.52262111,0.00035616,14]
[377620431,1754460663652,-400.0,0.00035616,14]
[377620432,1754460663662,-400.0,0.00035616,14]
[377620433,1754460663672,-988.9,0.00035616,14]
[377620434,1754460663682,-1226.68,0.00035616,14]
[377620435,1754460663693,-614.72,0.00035616,14]
[377620436,1754460663703,-400.0,0.00035616,14]
[377620437,1754460663713,-404.25765734,0.00035616,2]
[377620438,1754460663724,-1188.85,0.00035616,14]
[377620439,1754460663734,-1218.09,0.00035616,14]
[377620440,1754460663744,-1850.59,0.00035616,14]
[377620441,1754460663755,-400.0,0.00035616,14]
[377620442,1754460663879,-2009.01,0.00035616,14]
[377620443,1754460663889,-400.0,0.00035616,14]
[377620444,1754460663899,-884.4,0.00035616,14]
[377620445,1754460663909,-400.0,0.00035616,14]
[377620446,1754460663919,-653.48,0.00035616,14]
[377620447,1754460663928,-417.73,0.00035616,14]
[377620448,1754460663938,-400.0,0.00035616,14]
[377620449,1754460663947,-400.0,0.00035616,14]
[377620450,1754460663957,-400.0,0.00035616,14]
[377620451,1754460663967,-1697.35,0.00035616,14]
[377620452,1754460663976,-2507.76,0.00035616,14]
[377620453,1754460663986,-668.04,0.00035616,14]
[377620454,1754460663996,-400.0,0.00035616,14]
[377620455,1754460664005,-411.29,0.00035616,14]
[377620456,1754460664016,-400.0,0.00035616,14]
[377620457,1754460664027,-2129.54,0.00035616,14]
[377620458,1754460664036,-2288.18,0.00035616,14]
[377620459,1754460664046,-400.0,0.00035616,14]
[377620460,1754460664055,-1868.61,0.00035616,14]
[377620461,1754460664065,-5782.82,0.00035616,14]
[377620462,1754460664079,-400.0,0.00035616,14]
[377620463,1754460664091,-426.48632417,0.00035616,14]
[377620464,1754460664100,-400.0,0.00035616,14]
[377620465,1754460664111,-400.0,0.00035616,14]
[377620466,1754460664121,-202.42982593,0.00035616,120]
[377620467,1754460664132,-150.30729017,0.00035616,5]
[377620468,1754460664143,-192.45,0.00035616,2]
[377620469,1754460664153,-373.75107363,0.00035626,2]
[377620470,1754460664164,-604.79404603,0.00035633,2]
[377620471,1754460664173,-2139.69746715,0.00035638,2]
[377620472,1754460664184,-373.75107363,0.00035641,2]
[377620473,1754460664194,-150.0,0.0003565,2]
[377620474,1754460664204,-373.75107363,0.00035656,2]
[377620475,1754460664213,-155.3696472,0.00035665,2]
[377620476,1754460664223,-373.75107363,0.00035671,2]
[377620477,1754460664232,-500.0,0.00035673,2]
[377620478,1754460664242,-150.0,0.00035678,2]
[377620479,1754460664252,-373.75107363,0.00035686,2]
[377620480,1754460664261,-150.0,0.00035688,2]
[377620481,1754460664271,-604.79404603,0.00035695,2]
[377620482,1754460664281,-2139.69746715,0.00035699,2]
[377620483,1754460664292,-373.75107363,0.00035701,2]
[377620484,1754460664302,-150.0,0.00035713,2]
[377620485,1754460664312,-373.75107363,0.00035716,2]
[377620486,1754460664322,-373.75107363,0.0003573,2]
[377620487,1754460664332,-150.0,0.00035732,2]
[377620488,1754460664342,-373.75107363,0.00035745,2]
[377620489,1754460664352,-150.0,0.00035748,2]
[377620490,1754460664362,-300.0,0.00035749,2]
[377620491,1754460664372,-150.0,0.0003575,2]
[377620492,1754460664382,-604.79404603,0.00035756,2]
[377620493,1754460664392,-2139.69746715,0.0003576,2]
[377620494,1754460664401,-373.75107363,0.0003576,2]
[377620495,1754460664413,-373.75107363,0.00035775,2]
[377620496,1754460664423,-150.0,0.00035787,2]
[377620497,1754460664433,-150.0,0.00035788,2]
[377620498,1754460664442,-500.0,0.00035789,14]
[377620499,1754460664452,-500.0,0.00035789,14]
[377620500,1754460664461,-353.91,0.00035789,2]
[377620501,1754460664471,-500.0,0.00035789,14]
[377620502,1754460664480,-151.0,0.0003579,7]
[377620503,1754460664489,-151.0,0.0003579,7]
[377620504,1754460664499,-151.0,0.0003579,7]
[377620505,1754460664509,-151.0,0.0003579,7]
[377620506,1754460664518,-151.0,0.0003579,7]
[377620507,1754460664528,-373.75107363,0.0003579,2]
[377620508,1754460664538,-210.7512467,0.0003579,2]
[377620509,1754460664547,-34474.8207,0.0003579,2]
[377620510,1754460664557,-105734.74816562,0.0003579,2]
[377620511,1754460665367,-1087.34876115,0.0003579,2]
[377620512,1754460665381,-1340.86936368,0.0003579,2]
[377620513,1754460666594,-341.49253213,0.00034407,2]
[377620514,1754460666757,-267.777,0.00034407,2]
[377620515,1754460666926,-282.73046787,0.00034407,2]
[377620516,1754460666936,-511.5241,0.00035506,2]
[377620517,1754460666945,-150.0,0.00035615,3]
[377620518,1754460666954,-66.17135238,0.00035616,14]
[377620519,1754460667102,-150.0,0.00035615,3]
[377620520,1754460667112,-333.82864762,0.00035616,14]
[377620521,1754460667122,-300.0,0.00035616,14]
[377620522,1754460667131,-400.0,0.00035616,14]
[377620523,1754460667141,-400.0,0.00035616,14]
[377620524,1754460667151,-400.0,0.00035616,14]
[377620525,1754460667160,-81413.84245836,0.0003579,2]
[377620526,1754460667171,-265.01333389,0.0003579,2]
[377620527,1754460667232,-119.3160173,0.0003579,2]
[377620528,1754460667242,-1000.0,0.0003579,2]
[377620529,1754460667252,-150.0,0.000358,2]
[377620530,1754460667262,-604.79404603,0.00035817,2]
[377620531,1754460667273,-2139.69746715,0.0003582,2]
[377620532,1754460667282,-150.0,0.00035821,2]
[377620533,1754460667292,-155.3696472,0.00035823,2]
[377620534,1754460667301,-150.0,0.00035825,2]
[377620535,1754460667310,-150.0,0.00035834,2]
[377620536,1754460667320,-150.0,0.00035835,2]
[377620537,1754460667329,-150.0,0.00035836,2]
[377620538,1754460667338,-150.0,0.00035837,2]
[377620539,1754460667349,-150.0,0.00035838,2]
[377620540,1754460667360,-150.0,0.00035846,2]
[377620541,1754460667370,-150.0,0.00035853,2]
[377620542,1754460667381,-150.0,0.00035866,2]
[377620543,1754460667390,-150.0,0.00035867,2]
[377620544,1754460667401,-150.0,0.00035875,2]
[377620545,1754460667412,-150.0,0.00035875,2]
[377620546,1754460667423,-604.79404603,0.00035878,2]
[377620547,1754460667433,-151.0,0.0003588,7]
[377620548,1754460667443,-151.0,0.0003588,7]
[377620549,1754460667454,-161.9952,0.0003588,7]
[377620550,1754460667466,-2139.69746715,0.00035881,2]
[377620551,1754460667476,-3389.4357024,0.00035884,2]
[377620552,1754460667485,-126887.387678,0.00035884,2]
[377620553,1754460667495,-2930.8264764,0.00035884,2]
[377620554,1754460667504,-151.0,0.00035884,7]
[377620555,1754460667514,-59266.66937769,0.00035884,2]
[377620556,1754460667527,-3776.0,0.00035884,2]
[377620557,1754460728314,160.65,0.00013699,2]
[377620559,1754461073509,3500.0,0.00030136,120]
[377620574,1754461510399,5089.10398688,0.000154,2]
[377620575,1754461510422,3702.02856753,0.000154,2]
[377620576,1754461553795,504.0,0.00015,10]
[377620577,1754461562208,1387.07541935,8e-05,2]
[377620578,1754461562230,5089.10398688,8e-05,2]
[377620579,1754461562252,1855.69670087,8e-05,2]
[377620583,1754461774760,160.65,0.00013699,2]
[377620594,1754461832268,-300.0,0.00018999,2]
[377620596,1754461832278,-500.0,0.00018999,2]
[377620598,1754461832288,-503.57763178,0.00018999,2]
[377620599,1754461832297,-812.89998513,0.00019,2]
[377620633,1754461833538,-410.18768663,0.00019,2]
[377620634,1754461833550,-3004.77740675,0.00019,2]
[377620635,1754461833562,-3507.44903139,0.00019,2]
[377620636,1754461833573,-784.71721396,0.00019,2]
[377620637,1754461833589,-3432.81515708,0.00019,2]
[377620638,1754461833612,-784.86696451,0.00019,2]
[377620639,1754461833623,-503.57763178,0.00019,2]
[377620640,1754461833636,-2157.53786174,0.00019,2]
[377620641,1754461833648,-812.9292,0.00019,2]
[377620642,1754461833660,-478.58019851,0.00019,2]
[377620643,1754461833690,-6220.05450045,0.00019,2]
[377620655,1754461838315,-473.11829867,0.00018904,2]
[377620709,1754461843279,-500.0,0.00018904,2]
[377620710,1754461843411,-1360.26820433,0.00018904,2]
[377620711,1754461843421,-376.08145397,0.00019,2]
[377620712,1754461843470,-3659.21620994,0.00019,2]
[377620722,1754461914330,1619.34096251,0.00019,30]
[377620726,1754462589838,-1200.0,0.00018988,2]
[377620727,1754462589860,-300.0,0.00018988,2]
[377620728,1754462589882,-151.0,0.00018989,2]
[377620729,1754462589904,-151.0,0.00018989,2]
[377620730,1754462589926,-151.0,0.00018989,2]
[377620731,1754462589950,-151.0,0.00018989,2]
[377620732,1754462589971,-151.0,0.00018989,2]
[377620733,1754462589992,-151.0,0.00018989,2]
[377620734,1754462590012,-151.0,0.00018989,2]
[377620735,1754462590034,-151.0,0.00018989,2]
[377620736,1754462590059,-151.0,0.00018989,2]
[377620737,1754462590080,-151.0,0.00018989,2]
[377620738,1754462590102,-151.0,0.00018989,2]
[377620739,1754462590124,-151.0,0.00018989,2]